fUSD/lending_fUSD_20250610
["ID","MTS","AMOUNT","RATE_DAILY","PERIOD"]
[365207049,1749534269857,-490.0,0.00016438,2]
[365207050,1749534269884,-490.0,0.00016438,2]
[365207051,1749534269912,-490.0,0.00016438,2]
[365207052,1749534269937,-490.0,0.00016438,2]
[365207053,1749534269964,-490.0,0.00016438,2]
[365207054,1749534269990,-490.0,0.00016438,2]
[365207055,1749534270017,-490.0,0.00016438,2]
[365207056,1749534270043,-486.26168738,0.00016438,2]
[365207057,1749534270070,-490.0,0.00016438,2]
[365207058,1749534270096,-480.0,0.00016438,2]
[365207059,1749534270122,-490.0,0.00016438,2]
[365207060,1749534270148,-490.0,0.00016438,2]
[365207061,1749534270174,-490.0,0.00016438,2]
[365207062,1749534270200,-627.84058816,0.00016438,2]
[365207063,1749534270227,-783.92,0.00016438,2]
[365207064,1749534270253,-490.0,0.00016438,2]
[365207065,1749534270279,-427.37892789,0.00016438,2]
[365207066,1749534270306,-490.0,0.00016438,2]
[365207067,1749534270332,-480.0,0.00016438,2]
[365207068,1749534270358,-490.0,0.00016438,2]
[365207069,1749534270384,-480.0,0.00016438,2]
[365207070,1749534270417,-512.65,0.00016438,2]
[365207071,1749534270445,-490.0,0.00016438,2]
[365207072,1749534270472,-490.0,0.00016438,2]
[365207073,1749534270503,-480.0,0.00016438,2]
[365207074,1749534270531,-490.0,0.00016438,2]
[365207075,1749534270561,-529.57,0.00016438,2]
[365207076,1749534270591,-490.0,0.00016438,2]
[365207077,1749534270619,-490.0,0.00016438,2]
[365207078,1749534270646,-490.0,0.00016438,2]
[365207079,1749534270673,-490.0,0.00016438,2]
[365207080,1749534270699,-480.0,0.00016438,2]
[365207081,1749534270727,-490.0,0.00016438,2]
[365207082,1749534270753,-490.0,0.00016438,2]
[365207083,1749534270780,-490.0,0.00016438,2]
[365207084,1749534270807,-490.0,0.00016438,2]
[365207085,1749534271045,-490.0,0.00016438,2]
[365207086,1749534271072,-490.0,0.00016438,2]
[365207087,1749534271100,-480.0,0.00016438,2]
[365207088,1749534271128,-480.0,0.00016438,2]
[365207089,1749534271158,-490.0,0.00016438,2]
[365207090,1749534271188,-490.0,0.00016438,2]
[365207091,1749534271215,-539.66,0.00016438,2]
[365207092,1749534271244,-616.05,0.00016438,2]
[365207093,1749534271272,-480.0,0.00016438,2]
[365207094,1749534271303,-490.0,0.00016438,2]
[365207095,1749534271330,-490.0,0.00016438,2]
[365207096,1749534271356,-490.0,0.00016438,2]
[365207097,1749534271382,-490.0,0.00016438,2]
[365207098,1749534271411,-490.0,0.00016438,2]
[365207099,1749534271439,-490.0,0.00016438,2]
[365207100,1749534271467,-180.3758842,0.00016438,2]
[365207101,1749534271674,-380.0,0.00016438,2]
[365207102,1749534271712,-490.0,0.00016438,2]
[365207103,1749534271739,-8.66762309,0.00016438,2]
[365207105,1749534371956,263.0,0.00015299,2]
[365207106,1749534372249,263.0,0.00015751,2]
[365207115,1749534420096,1654.04373637,0.00015,2]
[365207120,1749534470363,500.0,0.00014964,2]
[365207121,1749534472809,1500.0,0.000155,3]
[365207126,1749534528575,-21000.0,0.00016109,2]
[365207128,1749534555941,-24.74,0.00016109,2]
[365207129,1749534555967,-446.5,0.00016165,2]
[365207130,1749534555993,-263.0,0.00016202,3]
[365207131,1749534556018,-600.0,0.00016368,4]
[365207132,1749534556043,-250.0,0.00016368,2]
[365207133,1749534556069,-1200.0,0.00016437,2]
[365207134,1749534556096,-15.76,0.00016437,2]
[365207136,1749534564697,876.01,0.00014085,2]
[365207137,1749534572176,-876.01,0.00016349,2]
[365207138,1749534572202,-284.24,0.00016437,2]
[365207139,1749534572228,-300.0,0.00016437,2]
[365207140,1749534572256,-481.33237691,0.00016438,2]
[365207141,1749534572283,-480.0,0.00016438,2]
[365207142,1749534572308,-515.36442675,0.00016438,2]
[365207144,1749534572333,-490.0,0.00016438,2]
[365207145,1749534572359,-490.0,0.00016438,2]
[365207146,1749534572384,-490.0,0.00016438,2]
[365207147,1749534572411,-490.0,0.00016438,2]
[365207148,1749534572439,-490.0,0.00016438,2]
[365207149,1749534572467,-490.0,0.00016438,2]
[365207150,1749534572492,-605.28065682,0.00016438,2]
[365207151,1749534572518,-490.0,0.00016438,2]
[365207152,1749534572543,-490.0,0.00016438,2]
[365207153,1749534572569,-490.0,0.00016438,2]
[365207154,1749534572597,-480.0,0.00016438,2]
[365207155,1749534572625,-480.0,0.00016438,2]
[365207156,1749534572651,-346.56780588,0.00016438,2]
[365207157,1749534572679,-490.0,0.00016438,2]
[365207158,1749534572705,-490.0,0.00016438,2]
[365207159,1749534572730,-490.0,0.00016438,2]
[365207160,1749534572756,-460.0,0.00016438,2]
[365207161,1749534572783,-490.0,0.00016438,2]
[365207162,1749534572808,-490.0,0.00016438,2]
[365207163,1749534572834,-490.0,0.00016438,2]
[365207164,1749534572860,-490.0,0.00016438,2]
[365207165,1749534572886,-490.0,0.00016438,2]
[365207166,1749534573128,-490.0,0.00016438,2]
[365207167,1749534573156,-490.0,0.00016438,2]
[365207168,1749534573183,-490.0,0.00016438,2]
[365207169,1749534573210,-480.0,0.00016438,2]
[365207170,1749534573238,-1000.0,0.00016438,2]
[365207171,1749534573265,-311.20473364,0.00016438,2]
[365207178,1749534606415,-1200.0,0.00016437,2]
[365207179,1749534606441,-300.0,0.00016437,2]
[365207180,1749534606467,-178.79526636,0.00016438,2]
[365207181,1749534606494,-490.0,0.00016438,2]
[365207182,1749534606520,-490.0,0.00016438,2]
[365207183,1749534606547,-490.0,0.00016438,2]
[365207184,1749534606576,-490.0,0.00016438,2]
[365207185,1749534606602,-490.0,0.00016438,2]
[365207186,1749534606633,-490.0,0.00016438,2]
[365207187,1749534606660,-480.0,0.00016438,2]
[365207188,1749534606691,-490.0,0.00016438,2]
[365207189,1749534606717,-480.0,0.00016438,2]
[365207190,1749534606743,-490.0,0.00016438,2]
[365207191,1749534606768,-374.801189,0.00016438,2]
[365207192,1749534606795,-490.0,0.00016438,2]
[365207193,1749534606822,-490.0,0.00016438,2]
[365207194,1749534606849,-480.0,0.00016438,2]
[365207195,1749534606874,-480.0,0.00016438,2]
[365207196,1749534606899,-490.0,0.00016438,2]
[365207197,1749534606924,-490.0,0.00016438,2]
[365207198,1749534606949,-200.0,0.00016438,2]
[365207199,1749534606975,-580.88,0.00016438,2]
[365207200,1749534607001,-499.3448597,0.00016438,2]
[365207201,1749534607028,-454.49869047,0.00016438,2]
[365207202,1749534607055,-490.0,0.00016438,2]
[365207203,1749534607080,-490.0,0.00016438,2]
[365207204,1749534607107,-480.0,0.00016438,2]
[365207205,1749534607134,-250.0,0.00016438,2]
[365207206,1749534607160,-490.0,0.00016438,2]
[365207207,1749534607187,-480.0,0.00016438,2]
[365207208,1749534607213,-490.0,0.00016438,2]
[365207209,1749534607241,-521.48,0.00016438,2]
[365207210,1749534607267,-490.0,0.00016438,2]
[365207211,1749534607294,-555.04,0.00016438,2]
[365207212,1749534607322,-490.0,0.00016438,2]
[365207213,1749534607348,-490.0,0.00016438,2]
[365207214,1749534607374,-490.0,0.00016438,2]
[365207215,1749534607401,-490.0,0.00016438,2]
[365207216,1749534607427,-490.0,0.00016438,2]
[365207217,1749534607453,-1122.61,0.00016438,2]
[365207218,1749534607479,-490.0,0.00016438,2]
[365207219,1749534607506,-509.02,0.00016438,2]
[365207220,1749534607534,-490.0,0.00016438,2]
[365207221,1749534607562,-490.0,0.00016438,2]
[365207222,1749534607589,-490.0,0.00016438,2]
[365207223,1749534607618,-490.0,0.00016438,2]
[365207224,1749534607646,-490.0,0.00016438,2]
[365207225,1749534607675,-490.0,0.00016438,2]
[365207226,1749534607703,-491.24886025,0.00016438,2]
[365207227,1749534607730,-176.4,0.00016438,2]
[365207228,1749534607758,-490.0,0.00016438,2]
[365207229,1749534607785,-490.0,0.00016438,2]
[365207230,1749534607813,-490.0,0.00016438,2]
[365207231,1749534607841,-490.0,0.00016438,2]
[365207232,1749534607869,-490.0,0.00016438,2]
[365207233,1749534607899,-490.0,0.00016438,2]
[365207234,1749534607927,-624.84,0.00016438,2]
[365207235,1749534607953,-463.0258605,0.00016438,2]
[365207236,1749534607980,-926.27,0.00016438,2]
[365207237,1749534608006,-490.0,0.00016438,2]
[365207238,1749534608033,-490.0,0.00016438,2]
[365207239,1749534608062,-520.99,0.00016438,2]
[365207240,1749534608087,-490.0,0.00016438,2]
[365207241,1749534608113,-490.0,0.00016438,2]
[365207242,1749534608140,-490.0,0.00016438,2]
[365207243,1749534608167,-490.0,0.00016438,2]
[365207244,1749534608194,-490.0,0.00016438,2]
[365207245,1749534608221,-472.96861225,0.00016438,2]
[365207246,1749534608246,-490.0,0.00016438,2]
[365207247,1749534608271,-490.0,0.00016438,2]
[365207248,1749534608297,-490.0,0.00016438,2]
[365207249,1749534608323,-513.81,0.00016438,2]
[365207250,1749534608350,-620.05,0.00016438,2]
[365207251,1749534608376,-490.0,0.00016438,2]
[365207252,1749534608406,-359.14481114,0.00016438,2]
[365207253,1749534608434,-490.0,0.00016438,2]
[365207254,1749534608460,-490.0,0.00016438,2]
[365207255,1749534608487,-490.0,0.00016438,2]
[365207256,1749534608514,-490.0,0.00016438,2]
[365207257,1749534608540,-490.0,0.00016438,2]
[365207258,1749534608567,-490.0,0.00016438,2]
[365207259,1749534608593,-490.0,0.00016438,2]
[365207260,1749534608621,-490.0,0.00016438,2]
[365207261,1749534608649,-175.22108136,0.00016438,2]
[365207262,1749534608677,-627.49,0.00016438,2]
[365207263,1749534608705,-490.0,0.00016438,2]
[365207264,1749534608731,-490.0,0.00016438,2]
[365207265,1749534608758,-490.0,0.00016438,2]
[365207266,1749534608786,-490.0,0.00016438,2]
[365207267,1749534608813,-490.0,0.00016438,2]
[365207268,1749534608840,-490.0,0.00016438,2]
[365207269,1749534608867,-490.0,0.00016438,2]
[365207270,1749534608894,-490.0,0.00016438,2]
[365207271,1749534608919,-165.18774429,0.00016438,2]
[365207272,1749534608946,-490.0,0.00016438,2]
[365207273,1749534608972,-490.0,0.00016438,2]
[365207274,1749534608999,-505.17,0.00016438,2]
[365207275,1749534609025,-490.0,0.00016438,2]
[365207276,1749534609051,-490.0,0.00016438,2]
[365207277,1749534609076,-490.0,0.00016438,2]
[365207278,1749534609104,-1886.34,0.00016438,2]
[365207279,1749534609130,-490.0,0.00016438,2]
[365207280,1749534609158,-639.59,0.00016438,2]
[365207281,1749534609395,-490.0,0.00016438,2]
[365207282,1749534609427,-670.19,0.00016438,2]
[365207283,1749534609454,-490.0,0.00016438,2]
[365207284,1749534609479,-490.0,0.00016438,2]
[365207285,1749534609504,-490.0,0.00016438,2]
[365207286,1749534609530,-490.0,0.00016438,2]
[365207287,1749534609557,-490.0,0.00016438,2]
[365207288,1749534609583,-490.0,0.00016438,2]
[365207289,1749534609610,-490.0,0.00016438,2]
[365207290,1749534609636,-490.0,0.00016438,2]
[365207291,1749534609664,-490.0,0.00016438,2]
[365207292,1749534609691,-582.3,0.00016438,2]
[365207293,1749534609720,-490.0,0.00016438,2]
[365207294,1749534609746,-490.0,0.00016438,2]
[365207295,1749534609771,-498.52990417,0.00016438,2]
[365207296,1749534609797,-490.0,0.00016438,2]
[365207297,1749534609822,-626.45,0.00016438,2]
[365207298,1749534609848,-154.52570855,0.00016438,2]
[365207299,1749534609875,-563.77,0.00016438,2]
[365207300,1749534609899,-364.18554783,0.00016438,2]
[365207301,1749534609925,-490.0,0.00016438,2]
[365207302,1749534609950,-487.42214193,0.00016438,2]
[365207303,1749534609977,-490.0,0.00016438,2]
[365207304,1749534610001,-490.0,0.00016438,2]
[365207305,1749534610026,-766.63,0.00016438,2]
[365207306,1749534610051,-490.0,0.00016438,2]
[365207307,1749534610077,-490.0,0.00016438,2]
[365207308,1749534610103,-490.0,0.00016438,2]
[365207309,1749534610127,-2576.79315165,0.00016503,2]
[365207310,1749534610152,-8928.96,0.00016513,2]
[365207311,1749534610177,-300.0,0.00016519,2]
[365207312,1749534610201,-151.0,0.00016519,2]
[365207313,1749534610225,-151.0,0.00016519,2]
[365207314,1749534610250,-300.0,0.00016519,2]
[365207315,1749534610275,-431.95965328,0.00016519,2]
[365207316,1749534610299,-151.0,0.00016519,2]
[365207317,1749534610325,-207.4,0.00016519,2]
[365207318,1749534610352,-412.7048815,0.00016602,2]
[365207319,1749534610377,-213.44583568,0.00016602,2]
[365207320,1749534610402,-480.0,0.00016602,2]
[365207321,1749534610428,-490.0,0.00016602,2]
[365207322,1749534610454,-490.0,0.00016602,2]
[365207323,1749534610479,-170.65,0.00016602,2]
[365207324,1749534610504,-490.0,0.00016602,2]
[365207325,1749534610530,-500.48,0.00016602,2]
[365207326,1749534610557,-490.0,0.00016602,2]
[365207327,1749534610583,-200.0,0.00016602,2]
[365207328,1749534610610,-490.0,0.00016602,2]
[365207329,1749534610640,-521.48,0.00016602,2]
[365207330,1749534610667,-490.0,0.00016602,2]
[365207331,1749534610695,-490.0,0.00016602,2]
[365207332,1749534610720,-490.0,0.00016602,2]
[365207333,1749534610746,-490.0,0.00016602,2]
[365207334,1749534610771,-490.0,0.00016602,2]
[365207335,1749534610802,-1122.61,0.00016602,2]
[365207336,1749534610832,-490.0,0.00016602,2]
[365207337,1749534610862,-504.55697642,0.00016602,2]
[365207338,1749534610896,-490.0,0.00016602,2]
[365207339,1749534610926,-490.0,0.00016602,2]
[365207340,1749534610953,-490.0,0.00016602,2]
[365207341,1749534610980,-490.0,0.00016602,2]
[365207342,1749534611006,-490.0,0.00016602,2]
[365207343,1749534611032,-490.0,0.00016602,2]
[365207344,1749534611057,-490.0,0.00016602,2]
[365207345,1749534611083,-490.0,0.00016602,2]
[365207346,1749534611108,-490.0,0.00016602,2]
[365207347,1749534611136,-624.84,0.00016602,2]
[365207348,1749534611162,-926.27,0.00016602,2]
[365207349,1749534611189,-490.0,0.00016602,2]
[365207350,1749534611214,-210.5600255,0.00016602,2]
[365207351,1749534611242,-490.0,0.00016602,2]
[365207352,1749534611268,-490.0,0.00016602,2]
[365207353,1749534611293,-490.0,0.00016602,2]
[365207354,1749534611319,-620.05,0.00016602,2]
[365207355,1749534611346,-490.0,0.00016602,2]
[365207356,1749534611371,-490.0,0.00016602,2]
[365207357,1749534611398,-490.0,0.00016602,2]
[365207358,1749534611426,-627.49,0.00016602,2]
[365207359,1749534611452,-490.0,0.00016602,2]
[365207360,1749534611480,-490.0,0.00016602,2]
[365207361,1749534611506,-261.59143006,0.00016602,2]
[365207362,1749534611533,-490.0,0.00016602,2]
[365207363,1749534611563,-505.17,0.00016602,2]
[365207364,1749534611590,-490.0,0.00016602,2]
[365207365,1749534611621,-1886.34,0.00016602,2]
[365207366,1749534611651,-670.19,0.00016602,2]
[365207367,1749534611681,-490.0,0.00016602,2]
[365207368,1749534611708,-490.0,0.00016602,2]
[365207369,1749534611733,-490.0,0.00016602,2]
[365207370,1749534611759,-490.0,0.00016602,2]
[365207371,1749534611784,-490.0,0.00016602,2]
[365207372,1749534611811,-490.0,0.00016602,2]
[365207373,1749534611838,-490.0,0.00016602,2]
[365207374,1749534611865,-490.0,0.00016602,2]
[365207375,1749534611892,-490.0,0.00016602,2]
[365207376,1749534611919,-480.0,0.00016602,2]
[365207377,1749534611947,-563.77,0.00016602,2]
[365207378,1749534611973,-490.0,0.00016602,2]
[365207379,1749534611997,-490.0,0.00016602,2]
[365207380,1749534612023,-766.63,0.00016602,2]
[365207381,1749534612048,-490.0,0.00016602,2]
[365207382,1749534612072,-425.87,0.00016602,2]
[365207383,1749534612097,-922.36,0.00016648,2]
[365207384,1749534612123,-263.0,0.00016654,3]
[365207385,1749534612148,-150.0,0.00016685,2]
[365207386,1749534612174,-221.25,0.00016685,2]
[365207387,1749534612199,-796.76,0.000167,2]
[365207388,1749534612224,-461.18,0.000167,2]
[365207389,1749534612249,-490.0,0.00016767,2]
[365207390,1749534612276,-490.0,0.00016767,2]
[365207391,1749534612302,-162.01254181,0.00016767,2]
[365207392,1749534612328,-490.0,0.00016767,2]
[365207393,1749534612356,-521.48,0.00016767,2]
[365207394,1749534612383,-490.0,0.00016767,2]
[365207395,1749534612409,-490.0,0.00016767,2]
[365207396,1749534612436,-490.0,0.00016767,2]
[365207397,1749534612462,-490.0,0.00016767,2]
[365207398,1749534612678,-1122.61,0.00016767,2]
[365207399,1749534612710,-490.0,0.00016767,2]
[365207400,1749534612738,-490.0,0.00016767,2]
[365207401,1749534612765,-490.0,0.00016767,2]
[365207402,1749534612794,-490.0,0.00016767,2]
[365207403,1749534612821,-490.0,0.00016767,2]
[365207404,1749534612848,-490.0,0.00016767,2]
[365207405,1749534612873,-490.0,0.00016767,2]
[365207406,1749534612901,-624.84,0.00016767,2]
[365207407,1749534612927,-926.27,0.00016767,2]
[365207408,1749534612953,-490.0,0.00016767,2]
[365207409,1749534612980,-490.0,0.00016767,2]
[365207410,1749534613007,-490.0,0.00016767,2]
[365207411,1749534613034,-620.05,0.00016767,2]
[365207412,1749534613060,-490.0,0.00016767,2]
[365207413,1749534613087,-360.96,0.00016767,2]
[365207414,1749534613112,-490.0,0.00016767,2]
[365207415,1749534613140,-627.49,0.00016767,2]
[365207416,1749534613168,-490.0,0.00016767,2]
[365207417,1749534613196,-490.0,0.00016767,2]
[365207418,1749534613223,-490.0,0.00016767,2]
[365207419,1749534613250,-505.17,0.00016767,2]
[365207420,1749534613277,-490.0,0.00016767,2]
[365207421,1749534613305,-1886.34,0.00016767,2]
[365207422,1749534613332,-670.19,0.00016767,2]
[365207423,1749534613358,-490.0,0.00016767,2]
[365207424,1749534613385,-490.0,0.00016767,2]
[365207425,1749534613411,-490.0,0.00016767,2]
[365207426,1749534613439,-197.41,0.00016767,2]
[365207427,1749534613465,-561.55,0.00016767,2]
[365207428,1749534613494,-490.0,0.00016767,2]
[365207429,1749534613522,-563.77,0.00016767,2]
[365207430,1749534613551,-490.0,0.00016767,2]
[365207431,1749534613579,-490.0,0.00016767,2]
[365207432,1749534613608,-766.63,0.00016767,2]
[365207433,1749534613634,-490.0,0.00016767,2]
[365207434,1749534613659,-500.0,0.00016767,2]
[365207435,1749534613685,-200.0,0.00016768,2]
[365207436,1749534613712,-341.29,0.00016808,2]
[365207437,1749534613738,-170.69,0.00016808,2]
[365207438,1749534613764,-500.0,0.00016818,2]
[365207439,1749534613791,-507.99253882,0.00016818,2]
[365207440,1749534613816,-500.0,0.00016818,2]
[365207441,1749534613842,-6401.33682827,0.0001683,2]
[365207442,1749534613867,-833.29909032,0.00016861,2]
[365207443,1749534613893,-14113.03676889,0.0001688,2]
[365207455,1749534632288,-169.47798688,0.00016438,2]
[365207456,1749534632298,-200.0,0.00016438,2]
[365207457,1749534632308,-137.09201312,0.00016438,2]
[365207458,1749534632319,-352.90798688,0.00016438,2]
[365207459,1749534632329,-490.0,0.00016438,2]
[365207460,1749534632339,-93.88661333,0.00016438,2]
[365207461,1749534632490,-343.49999928,0.00016438,2]
[365207462,1749534632502,-52.61338739,0.00016438,2]
[365207464,1749534632511,-352.54728954,0.00016438,2]
[365207466,1749534632521,-32.13932307,0.00016438,2]
[365207467,1749534632534,-383.5,0.00016438,2]
[365207468,1749534632655,-74.36067693,0.00016438,2]
[365207469,1749534632664,-490.0,0.00016438,2]
[365207470,1749534632674,-490.0,0.00016438,2]
[365207471,1749534632684,-503.9,0.00016438,2]
[365207472,1749534632696,-442.24199276,0.00016438,2]
[365207473,1749534632707,-163.086026,0.00016438,2]
[365207474,1749534632718,-490.0,0.00016438,2]
[365207476,1749534632727,-490.0,0.00016438,2]
[365207478,1749534632737,-39.16168043,0.00016438,2]
[365207480,1749534632749,-450.83831957,0.00016438,2]
[365207482,1749534632758,-195.44343523,0.00016438,2]
[365207484,1749534632769,-294.55656477,0.00016438,2]
[365207486,1749534632779,-298.88,0.00016438,2]
[365207488,1749534632788,-490.0,0.00016438,2]
[365207490,1749534632802,-490.0,0.00016602,2]
[365207492,1749534632812,-490.0,0.00016602,2]
[365207494,1749534632823,-490.0,0.00016602,2]
[365207496,1749534632833,-490.0,0.00016602,2]
[365207498,1749534632842,-503.9,0.00016602,2]
[365207500,1749534632852,-490.0,0.00016602,2]
[365207502,1749534632861,-490.0,0.00016602,2]
[365207504,1749534632871,-490.0,0.00016602,2]
[365207506,1749534632880,-490.0,0.00016767,2]
[365207508,1749534632890,-490.0,0.00016767,2]
[365207511,1749534632902,-490.0,0.00016767,2]
[365207513,1749534632913,-503.9,0.00016767,2]
[365207515,1749534632922,-490.0,0.00016767,2]
[365207517,1749534632933,-17435.96323111,0.0001688,2]
[365207519,1749534632944,-490.0,0.00016931,2]
[365207521,1749534632954,-490.0,0.00016931,2]
[365207523,1749534632963,-490.0,0.00016931,2]
[365207525,1749534632974,-490.0,0.00016931,2]
[365207527,1749534632984,-490.0,0.00016931,2]
[365207529,1749534632994,-1122.61,0.00016931,2]
[365207531,1749534633004,-490.0,0.00016931,2]
[365207533,1749534633013,-490.0,0.00016931,2]
[365207535,1749534633023,-490.0,0.00016931,2]
[365207537,1749534633033,-490.0,0.00016931,2]
[365207539,1749534633043,-490.0,0.00016931,2]
[365207541,1749534633053,-490.0,0.00016931,2]
[365207543,1749534633063,-490.0,0.00016931,2]
[365207545,1749534633073,-624.84,0.00016931,2]
[365207547,1749534633083,-926.27,0.00016931,2]
[365207549,1749534633093,-490.0,0.00016931,2]
[365207551,1749534633103,-490.0,0.00016931,2]
[365207553,1749534633112,-490.0,0.00016931,2]
[365207555,1749534633122,-620.05,0.00016931,2]
[365207557,1749534633132,-490.0,0.00016931,2]
[365207559,1749534633141,-490.0,0.00016931,2]
[365207561,1749534633152,-627.49,0.00016931,2]
[365207563,1749534633162,-490.0,0.00016931,2]
[365207565,1749534633172,-490.0,0.00016931,2]
[365207567,1749534633182,-490.0,0.00016931,2]
[365207569,1749534633191,-505.17,0.00016931,2]
[365207571,1749534633201,-490.0,0.00016931,2]
[365207573,1749534633211,-1886.34,0.00016931,2]
[365207575,1749534633220,-670.19,0.00016931,2]
[365207577,1749534633229,-490.0,0.00016931,2]
[365207579,1749534633238,-490.0,0.00016931,2]
[365207581,1749534633247,-490.0,0.00016931,2]
[365207583,1749534633256,-490.0,0.00016931,2]
[365207585,1749534633266,-563.77,0.00016931,2]
[365207587,1749534633275,-490.0,0.00016931,2]
[365207589,1749534633285,-490.0,0.00016931,2]
[365207591,1749534633295,-766.63,0.00016931,2]
[365207594,1749534633306,-565.93,0.00016931,2]
[365207596,1749534633316,-490.0,0.00016931,2]
[365207598,1749534633326,-490.0,0.00016931,2]
[365207600,1749534633336,-490.0,0.00016931,2]
[365207602,1749534633346,-503.9,0.00016931,2]
[365207604,1749534633357,-427.19941607,0.00016931,2]
[365207606,1749534633367,-200.0,0.00016936,2]
[365207608,1749534633377,-6401.3368282,0.00016948,2]
[365207610,1749534633387,-6401.3368282,0.00017066,2]
[365207612,1749534633398,-503.0,0.00017068,2]
[365207614,1749534633409,-580.29,0.00017094,2]
[365207616,1749534633419,-500.0,0.00017094,2]
[365207618,1749534633429,-500.0,0.00017094,2]
[365207620,1749534633439,-500.0,0.00017094,2]
[365207622,1749534633449,-490.0,0.00017095,2]
[365207624,1749534633459,-490.0,0.00017095,2]
[365207626,1749534633470,-490.0,0.00017095,2]
[365207628,1749534633480,-490.0,0.00017095,2]
[365207631,1749534633494,-490.0,0.00017095,2]
[365207633,1749534633505,-1122.61,0.00017095,2]
[365207635,1749534633516,-490.0,0.00017095,2]
[365207637,1749534633526,-637.69166409,0.00017095,2]
[365207639,1749534633537,-490.0,0.00017095,2]
[365207641,1749534633547,-490.0,0.00017095,2]
[365207643,1749534633558,-490.0,0.00017095,2]
[365207645,1749534633569,-490.0,0.00017095,2]
[365207647,1749534633579,-490.0,0.00017095,2]
[365207649,1749534633590,-624.84,0.00017095,2]
[365207651,1749534633600,-926.27,0.00017095,2]
[365207653,1749534633611,-490.0,0.00017095,2]
[365207656,1749534633625,-490.0,0.00017095,2]
[365207658,1749534633635,-490.0,0.00017095,2]
[365207660,1749534633645,-620.05,0.00017095,2]
[365207662,1749534633655,-490.0,0.00017095,2]
[365207664,1749534633666,-490.0,0.00017095,2]
[365207666,1749534633676,-627.49,0.00017095,2]
[365207668,1749534633686,-490.0,0.00017095,2]
[365207670,1749534633697,-490.0,0.00017095,2]
[365207672,1749534633708,-619.9922782,0.00017095,2]
[365207674,1749534633719,-505.17,0.00017095,2]
[365207676,1749534633729,-490.0,0.00017095,2]
[365207678,1749534633739,-1886.34,0.00017095,2]
[365207680,1749534633749,-670.19,0.00017095,2]
[365207682,1749534633760,-490.0,0.00017095,2]
[365207684,1749534633770,-490.0,0.00017095,2]
[365207686,1749534633780,-490.0,0.00017095,2]
[365207688,1749534633790,-563.77,0.00017095,2]
[365207690,1749534633800,-155.46310882,0.00017095,2]
[365207692,1749534633811,-490.0,0.00017095,2]
[365207694,1749534633822,-766.63,0.00017095,2]
[365207696,1749534633832,-278.41,0.00017095,2]
[365207698,1749534633842,-490.0,0.00017095,2]
[365207700,1749534633853,-490.0,0.00017095,2]
[365207702,1749534633862,-503.9,0.00017095,2]
[365207704,1749534633872,-200.0,0.00017105,2]